bitfinex-derivatives/quotes_ETHF0:USTF0_20250416
["timestamp","ask_amount","ask_price","bid_price","bid_amount"]
[1744846789902,1.27026,1574.6,1574.5,0.00951353]
[1744846790207,2.93196,1574.6,1574.5,6.28145353]
[1744846791109,1.6617,1574.6,1574.5,6.28145353]
[1744846801907,2.93196,1574.6,1574.5,5.01111353]
[1744846802108,1.27042,1574.4,1574.3,1.27045]
[1744846802313,1.27042,1574.4,1574.1,5.0016]
[1744846802514,3.0385,1574.3,1574.2,1.27053]
[1744846802709,1.768,1574.3,1574.2,6.27213]
[1744846803718,3.0385,1574.3,1574.2,6.27213]
[1744846803915,1.768,1574.3,1574.2,6.27213]
[1744846804121,3.0385,1574.3,1574.2,6.27213]
[1744846804918,1.768,1574.3,1574.2,6.27213]
[1744846805320,2.6268,1574.3,1574.2,6.27213]
[1744846807621,1.768,1574.3,1574.2,6.27213]
[1744846807822,1.768,1574.3,1574.2,7.74833]
[1744846811526,1.768,1574.3,1574.2,8.58443]
[1744846812425,1.743,1574.5,1574.4,1.27042]
[1744846812824,12.23384048,1574.7,1574.6,1.27026]
[1744846813028,7.89184048,1574.7,1574.6,1.27026]
[1744846813225,7.89184048,1574.7,1574.6,6.27186]
[1744846814028,9.60284048,1574.7,1574.6,6.27186]
[1744846814733,4.64559048,1574.7,1574.6,18.72766]
[1744846814918,3.30087048,1574.7,1574.6,18.72766]
[1744846815121,8.31814016,1574.8,1574.6,26.06786]
[1744846815322,4.34663064,1574.8,1574.7,7.74668]
[1744846815624,4.34663064,1574.8,1574.7,48.54668]
[1744846815929,12.13393643,1575.2,1575.1,1.26986]
[1744846816429,12.13393643,1575.2,1575.1,6.27146]
[1744846817328,12.95623643,1575.2,1575.1,6.27146]
[1744846818531,12.95623643,1575.2,1575.1,5.0016]
[1744846818532,14.22601643,1575.2,1575.1,5.0016]
[1744846819432,3.82528,1575.2,1575.1,5.0016]
[1744846820135,7.03308,1575.2,1575.1,5.0016]
[1744846822126,7.03308,1575.2,1575.1,6.27146]
[1744846822327,7.03308,1575.2,1575.1,5.0016]
[1744846823032,5.7633,1575.2,1575.1,6.27146]
[1744846823932,7.03308,1575.2,1575.1,6.27146]
[1744846824234,2.5555,1575.2,1575.1,6.27146]
[1744846825027,0.00951353,1575.3,1575.2,1.26978]
[1744846825223,0.00951353,1575.3,1575.2,6.27138]
[1744846825436,0.00951353,1575.3,1575.2,7.74648]
[1744846828633,0.00951353,1575.3,1575.2,6.27138]
[1744846831841,1.27921353,1575.3,1575.2,5.0016]
[1744846832143,1.27921353,1575.3,1575.2,6.27138]
[1744846832533,0.00951353,1575.3,1575.2,6.27138]
[1744846832838,5.00951353,1575.3,1575.0,0.00951353]
[1744846833038,2.15604,1575.2,1575.1,5.0016]
[1744846833328,4.65194,1575.2,1575.1,5.0016]
[1744846834042,4.65194,1575.2,1575.1,6.27146]
[1744846834245,4.65194,1575.2,1575.1,5.0016]
[1744846834638,1.26986,1575.1,1575.0,0.00951353]
[1744846834840,2.93086,1575.1,1575.0,5.01111353]
[1744846835747,1.661,1575.1,1575.0,6.28105353]
[1744846837645,1.661,1575.1,1575.0,9.48885353]
[1744846839146,0.00951353,1575.3,1575.2,1.26978]
[1744846839344,1.69251353,1575.3,1575.2,1.26978]
[1744846839538,1.69251353,1575.3,1575.2,6.27138]
[1744846845251,1.69251353,1575.3,1575.2,9.47918]
[1744846845854,1.69251353,1575.3,1575.2,6.27138]
[1744846849255,1.69251353,1575.3,1575.2,1.26978]
[1744846851462,0.00951353,1575.3,1575.2,9.47758]
[1744846851670,0.00951353,1575.3,1575.2,6.27858]
[1744846853069,0.00951353,1575.3,1575.2,1.26978]
[1744846853365,1.70321353,1575.3,1575.2,1.26978]
[1744846853767,0.00951353,1575.3,1575.2,1.26978]
[1744846854567,1.63861353,1575.3,1575.2,1.26978]
[1744846854769,1.63861353,1575.3,1575.2,6.27138]
[1744846859571,1.63861353,1575.3,1575.2,9.47918]
[1744846860176,1.63861353,1575.3,1575.2,9.48788]
[1744846861677,1.63861353,1575.3,1575.2,9.47918]
[1744846861878,1.63861353,1575.3,1575.2,6.27138]
[1744846865877,0.8019,1575.5,1575.2,18.72418]
[1744846866085,16.39073643,1575.9,1575.8,1.26929]
[1744846866283,10.40073643,1575.9,1575.8,1.26929]
[1744846866581,1.2694,1575.7,1575.5,5.51448]
[1744846866784,1.2694,1575.7,1575.6,5.0016]
[1744846866982,1.27884353,1575.8,1575.6,6.271]
[1744846867183,1.27884353,1575.8,1575.7,5.0016]
[1744846867581,0.00951353,1575.8,1575.7,5.0016]
[1744846867883,0.00951353,1575.8,1575.7,6.27097]
[1744846868485,1.69971353,1575.8,1575.7,6.27097]
[1744846869084,0.00951353,1575.8,1575.7,6.27097]
[1744846869383,0.00951353,1575.8,1575.7,11.38437]
[1744846869585,0.00951353,1575.8,1575.7,13.05527]
[1744846870382,0.00951353,1575.8,1575.7,53.85527]
[1744846870786,0.00951353,1575.8,1575.7,47.07097]
[1744846870984,1.26939,1575.7,1575.2,6.38208]
[1744846871288,1.6562,1575.6,1575.5,1.26953]
[1744846871586,4.65737,1575.6,1575.4,42.06956]
[1744846871885,3.3879,1575.6,1575.4,47.07116]
[1744846872086,1.7317,1575.5,1575.4,42.06956]
[1744846872687,1.7317,1575.5,1575.4,50.55123665]
[1744846872986,1.7317,1575.5,1575.4,55.55283665]
[1744846876791,1.7317,1575.5,1575.4,47.07116]
[1744846877589,1.7317,1575.5,1575.4,6.27116]
[1744846877990,1.7317,1575.5,1575.4,47.07116]
[1744846882990,1.7317,1575.5,1575.4,6.27116]
[1744846883688,1.7317,1575.5,1575.4,5.0016]
[1744846883897,1.7317,1575.5,1575.4,6.27122]
[1744846888289,1.6562,1575.6,1575.5,1.26953]
[1744846888493,3.3794,1575.6,1575.5,1.26953]
[1744846888698,3.3794,1575.6,1575.5,6.27113]
[1744846888899,4.64885,1575.6,1575.4,1.26956]
[1744846889100,1.7232,1575.5,1575.4,6.27116]
[1744846894097,2.99273,1575.5,1575.4,5.0016]
[1744846894299,2.99273,1575.5,1575.1,3.2078]
[1744846894300,9.931,1575.5,1575.1,3.2078]
[1744846894598,1.26978,1575.2,1575.1,5.0016]
[1744846895190,2.96028,1575.2,1575.1,5.0016]
[1744846897706,2.96028,1575.2,1575.1,6.27146]
[1744846898103,1.6905,1575.2,1575.1,6.27146]
[1744846898706,1.6905,1575.2,1575.1,7.89636]
[1744846900103,2.96028,1575.2,1575.1,7.89636]
[1744846900304,1.6199,1575.3,1575.2,1.26978]
[1744846900506,1.6199,1575.3,1575.2,7.94008]
[1744846901009,3.3111,1575.3,1575.2,7.94008]
[1744846901709,5.99,1575.5,1575.4,1.26962]
[1744846902012,8.5579,1575.5,1575.4,1.26962]
[1744846902312,8.5579,1575.5,1575.4,6.27122]
[1744846902510,8.5579,1575.5,1575.4,7.93992]
[1744846902813,2.5679,1575.5,1575.4,7.93992]
[1744846903711,3.83743,1575.5,1575.4,7.93992]
[1744846904012,2.5679,1575.5,1575.4,7.93992]
[1744846905306,4.244,1575.6,1575.5,1.26953]
[1744846905508,6.697,1575.6,1575.5,1.26953]
[1744846905710,7.5041,1575.6,1575.4,2.93825]
[1744846906013,1.6489,1575.5,1575.4,7.93985]
[1744846907719,2.91843,1575.5,1575.4,5.0016]
[1744846908012,1.26973,1575.3,1575.1,1.26981]
[1744846908208,2.15709,1575.2,1575.1,5.0016]
[1744846908407,3.4435,1575.2,1575.1,6.27146]
[1744846911215,5.99,1575.4,1575.3,1.2697]
[1744846911417,7.717,1575.4,1575.3,1.2697]
[1744846911617,8.6017,1575.4,1575.3,6.2713]
[1744846912617,9.87132,1575.4,1575.3,5.0016]
[1744846913219,9.87132,1575.4,1575.3,6.2713]
[1744846913522,9.87132,1575.4,1575.3,5.0016]
[1744846913822,1.26986,1575.1,1575.0,0.00951353]
[1744846914116,4.47766,1575.1,1575.0,0.00951353]
[1744846914308,9.47766,1575.1,1575.0,0.00951353]
[1744846914511,5.7909,1575.1,1575.0,0.00951353]
[1744846914721,2.5831,1575.1,1575.0,6.28105353]
[1744846915719,3.85296,1575.1,1575.0,6.28105353]
[1744846916321,2.5831,1575.1,1575.0,6.28105353]
[1744846916522,3.85296,1575.1,1575.0,6.28105353]
[1744846916715,2.5831,1575.1,1575.0,6.28105353]
[1744846917720,3.85296,1575.1,1575.0,6.28105353]
[1744846918121,2.5831,1575.1,1575.0,6.28105353]
[1744846920422,3.2078,1575.3,1575.2,1.26978]
[1744846920723,1.692,1575.4,1575.3,1.2697]
[1744846921019,3.4187,1575.4,1575.3,1.2697]
[1744846921214,3.4187,1575.4,1575.3,6.2713]
[1744846921720,3.4187,1575.4,1575.3,7.1542]
[1744846923823,4.68832,1575.4,1575.3,5.0016]
[1744846925317,3.4187,1575.4,1575.3,6.2713]
[1744846929018,4.68832,1575.4,1575.3,6.2713]
[1744846929222,3.4187,1575.4,1575.3,5.0016]
[1744846929524,4.68832,1575.4,1575.3,5.0016]
[1744846930126,4.68832,1575.4,1575.3,6.2713]
[1744846932227,3.4187,1575.4,1575.3,6.2713]
[1744846933728,4.68832,1575.4,1575.3,6.2713]
[1744846934432,4.68832,1575.4,1575.3,5.0016]
[1744846936827,4.68832,1575.4,1575.3,6.2713]
[1744846937033,4.243,1575.7,1575.5,1.26949]
[1744846937229,1.26945,1575.6,1575.5,1.26949]
[1744846937739,1.26945,1575.6,1575.5,6.27109]
[1744846938327,2.95965,1575.6,1575.5,5.0016]
[1744846938928,1.6902,1575.6,1575.5,6.27113]
[1744846939132,2.95965,1575.6,1575.5,6.27113]
[1744846939333,2.95965,1575.6,1575.5,5.0016]
[1744846940027,6.16745,1575.6,1575.5,5.0016]
[1744846941238,2.95965,1575.6,1575.5,5.0016]
[1744846944341,2.95965,1575.6,1575.5,6.27113]
[1744846945742,1.6902,1575.6,1575.5,6.27113]
[1744846945944,2.95965,1575.6,1575.5,6.27113]
[1744846946743,1.6902,1575.6,1575.5,6.27113]
[1744846947243,1.6902,1575.6,1575.5,8.82153]
[1744846947542,3.21731353,1575.8,1575.7,1.26937]
[1744846947840,0.00951353,1575.8,1575.7,1.26937]
[1744846948033,0.00951353,1575.8,1575.7,12.98967]
[1744846948234,0.00951353,1575.8,1575.7,53.78967]
[1744846949034,0.00951353,1575.8,1575.7,48.78967]
[1744846949749,0.00951353,1575.8,1575.7,53.78967]
[1744846955946,3.53e-06,1575.8,1575.7,53.78967]
[1744846957650,1.68,1576.3,1576.2,1.26897]
[1744846958055,1.68,1576.3,1576.2,6.27057]
[1744846958351,1.7177,1576.4,1576.3,1.26889]
[1744846958652,1.7177,1576.4,1576.3,6.27049]
[1744846960051,2.90814353,1576.5,1576.3,6.27049]
[1744846960257,2.90814353,1576.5,1576.4,5.0016]
[1744846960752,2.90814353,1576.5,1576.4,45.8016]
[1744846960954,1.63941353,1576.5,1576.4,47.07041]
[1744846962339,3.31591353,1576.5,1576.4,47.07041]
[1744846965252,4.58464353,1576.5,1576.4,45.8016]
[1744846965549,4.58464353,1576.5,1576.4,5.0016]
[1744846965751,3.31591353,1576.5,1576.4,6.27041]
[1744846968646,4.58464353,1576.5,1576.4,6.27041]
[1744846968847,1.26889,1576.3,1576.2,0.00951353]
[1744846969047,1.26889,1576.3,1576.2,5.01111353]
[1744846969551,1.26889,1576.3,1576.2,6.28008353]
[1744846970249,2.87107,1576.4,1576.3,1.26889]
[1744846970456,1.6022,1576.4,1576.3,1.26889]
[1744846970751,2.87101,1576.4,1576.3,1.26889]
[1744846971447,2.87101,1576.4,1576.3,6.27049]
[1744846971655,1.6022,1576.4,1576.3,6.27049]
[1744846973953,1.6022,1576.4,1576.3,10.51049]
[1744846975350,0.00951353,1576.5,1576.4,1.26881]
[1744846975657,0.00951353,1576.5,1576.4,8.01811]
[1744846975847,1.71751353,1576.5,1576.4,6.27041]
[1744846980360,1.71751353,1576.5,1576.4,8.02021]
[1744846982662,1.71751353,1576.5,1576.4,6.27041]
[1744846984163,1.71751353,1576.5,1576.4,7.94681]
[1744846986566,1.71751353,1576.5,1576.4,6.27041]
[1744846987769,2.98624353,1576.5,1576.4,6.27041]
[1744846988569,2.98624353,1576.5,1576.4,1.26881]
[1744846988774,1.71751353,1576.5,1576.4,6.27041]
[1744846991180,0.00951353,1576.5,1576.4,10.50941]
[1744846991368,0.00951353,1576.5,1576.4,12.19241]
[1744846994485,0.00951353,1576.5,1576.4,17.19241]
[1744846996884,3.53e-06,1576.5,1576.4,17.19241]
[1744846998481,3.53e-06,1576.5,1576.4,23.04841]
[1744847000176,13.60853643,1577.4,1576.4,23.04841]
[1744847000474,14.62770719,1577.7,1577.5,1.26787]
[1744847000677,19.62770719,1577.7,1577.6,40.8]
[1744847000882,20.89546719,1577.7,1577.3,3.2078]
[1744847001088,0.8744,1577.6,1577.3,8.2094]
[1744847001384,0.8012,1577.5,1577.4,40.8]
[1744847001783,5.8012,1577.5,1577.4,45.8016]
[1744847001980,5.8012,1577.5,1577.4,47.06961]
[1744847002775,0.8012,1577.5,1577.4,47.06961]
[1744847004879,0.00951353,1577.6,1577.5,1.26793]
[1744847005084,0.00951353,1577.6,1577.5,15.66493]
[1744847007881,0.00951353,1577.6,1577.5,9.47733]
[1744847016991,0.00951353,1577.6,1577.5,50.27733]
[1744847017190,0.00951353,1577.6,1577.5,52.03553]
[1744847018288,1.78321353,1577.6,1577.5,52.03553]
[1744847020694,1.78321353,1577.6,1577.5,50.27733]
[1744847029903,1.78321353,1577.6,1577.5,45.27573]
[1744847031603,1.78321353,1577.6,1577.5,42.06793]
[1744847031903,1.78321353,1577.6,1577.5,45.27573]
[1744847034812,1.78321353,1577.6,1577.5,42.06793]
[1744847035309,1.78321353,1577.6,1577.5,45.27573]
[1744847038613,1.78321353,1577.6,1577.5,50.27733]
[1744847042514,0.00951353,1577.6,1577.5,50.27733]
[1744847042717,0.00951353,1577.6,1577.5,56.42003]
[1744847044516,3.53e-06,1577.6,1577.5,56.42003]
[1744847044817,1.619,1578.1,1578.0,1.26752]
[1744847045311,1.619,1578.1,1578.0,6.26912]
[1744847045711,8.2297,1578.1,1577.9,4.47535]
[1744847045906,4.49716,1578.1,1577.9,8.2094]
[1744847046112,1.6107,1578.0,1577.9,3.2078]
[1744847046312,1.6107,1578.0,1577.9,4.4754]
[1744847047816,1.6107,1578.0,1577.9,3.2078]
[1744847048016,2.87822,1578.0,1577.9,3.2078]
[1744847048611,1.6107,1578.0,1577.9,4.4754]
[1744847052118,7.609,1578.1,1577.9,4.4754]
[1744847052119,0.00951353,1578.2,1578.1,1.26744]
[1744847052420,0.00951353,1578.2,1578.1,8.89524]
[1744847052621,0.00951353,1578.2,1578.1,13.89684]
[1744847052823,0.00951353,1578.2,1578.1,9.47684]
[1744847053022,0.00951353,1578.2,1578.1,13.89684]
[1744847053320,0.00951353,1578.2,1578.1,14.78144]
[1744847053521,0.00951353,1578.2,1578.1,10.36144]
[1744847053721,0.00951353,1578.2,1578.1,14.78044]
[1744847054123,0.00951353,1578.2,1578.1,19.78044]
[1744847054920,0.00951353,1578.2,1578.1,14.78044]
[1744847056119,0.00951353,1578.2,1578.1,19.78044]
[1744847057422,0.00951353,1578.2,1578.1,14.78044]
[1744847058528,5.99,1579.0,1578.1,30.70615]
[1744847058726,4.71757972,1578.9,1578.7,1.26695]
[1744847059022,1.7509,1578.8,1578.7,42.06695]
[1744847059213,1.7509,1578.8,1578.7,40.8]
[1744847059415,1.7509,1578.8,1578.7,47.06856]
[1744847059922,8.01778,1578.8,1578.7,40.8]
[1744847060620,8.01778,1578.8,1578.6,0.00951353]
[1744847060621,1.26696,1578.7,1578.6,0.00951353]
[1744847060826,3.01786,1578.7,1578.6,0.00951353]
[1744847061016,8.01786,1578.7,1578.6,0.00951353]
[1744847063426,14.00786,1578.7,1578.6,0.00951353]
[1744847063927,9.00786,1578.7,1578.6,0.00951353]
[1744847064929,14.00786,1578.7,1578.6,0.00951353]
[1744847065428,1.26712,1578.5,1578.4,4.47494]
[1744847065631,1.26712,1578.5,1578.4,8.2094]
[1744847066130,1.6613,1578.5,1578.4,9.4766]
[1744847066831,2.92842,1578.5,1578.4,8.2094]
[1744847067332,2.92842,1578.5,1578.4,9.4766]
[1744847067333,1.6613,1578.5,1578.4,9.4766]
[1744847068324,2.92842,1578.5,1578.4,9.4766]
[1744847068538,1.6613,1578.5,1578.4,9.4766]
[1744847068733,3.74812,1578.5,1578.4,8.2094]
[1744847068947,2.481,1578.5,1578.4,9.4766]
[1744847069122,1.6613,1578.5,1578.4,9.4766]
[1744847070326,1.6613,1578.5,1578.4,9.4766]
[1744847070527,2.92842,1578.5,1578.4,8.2094]
[1744847071030,1.2672,1578.4,1578.3,0.00951353]
[1744847071331,6.1935,1578.4,1578.3,0.00951353]
[1744847071530,8.9757,1578.4,1578.3,0.00951353]
[1744847072531,13.9757,1578.4,1578.3,0.00951353]
[1744847073532,8.9757,1578.4,1578.3,0.00951353]
[1744847073731,13.9757,1578.4,1578.3,0.00951353]
[1744847074231,1.26744,1578.1,1578.0,40.8]
[1744847074438,1.26744,1578.1,1578.0,5.0016]
[1744847074633,2.6275,1578.3,1578.0,9.47692]
[1744847074933,3.01072,1578.2,1578.0,8.2094]
[1744847075135,1.7433,1578.1,1578.0,9.47687]
[1744847076133,1.7433,1578.1,1578.0,11.17847]
[1744847076338,5.99,1578.8,1578.4,1.26719]
[1744847076527,1.26712,1578.5,1578.4,4.47495]
[1744847076729,1.2671,1578.6,1578.5,5.0016]
[1744847077031,2.87064,1578.6,1578.5,6.26872]
[1744847077240,1.6036,1578.6,1578.5,6.26872]
[1744847080036,2.87064,1578.6,1578.5,5.0016]
[1744847080831,1.26712,1578.5,1578.4,4.47495]
[1744847081036,2.4986,1578.5,1578.4,9.47655]
[1744847082733,2.4986,1578.5,1578.4,6.26875]
[1744847084941,2.4986,1578.5,1578.4,9.47655]
[1744847086342,3.76572,1578.5,1578.4,9.47655]
[1744847086533,2.4986,1578.5,1578.4,9.47655]
[1744847087544,2.4986,1578.5,1578.4,6.26875]
[1744847088842,2.4986,1578.5,1578.4,9.47655]
[1744847089143,10.7064,1578.5,1578.0,3.2078]
[1744847089337,1.26744,1578.1,1578.0,5.0016]
[1744847089534,1.26744,1578.1,1578.0,4.99233972]
[1744847090347,3.77384,1578.1,1578.0,4.99233972]
[1744847094044,2.5064,1578.1,1578.0,6.25985972]
[1744847094243,2.5064,1578.1,1578.0,7.98775972]
[1744847094448,1.6524,1578.1,1578.0,8.79435972]
[1744847095648,5.99,1578.2,1578.1,1.26744]
[1744847095945,7.25736,1578.2,1578.1,4.99233972]
[1744847096245,7.25736,1578.2,1578.1,7.94737972]
[1744847096445,8.96216,1578.2,1578.1,7.94737972]
[1744847098446,8.96216,1578.2,1578.1,6.67993972]
[1744847098651,2.97216,1578.2,1578.1,6.67993972]
[1744847099252,2.97216,1578.2,1578.1,4.99233972]
[1744847100152,20.2636,1578.2,1577.5,8.48167665]
[1744847100357,1.26793,1577.5,1577.3,16.96335331]
[1744847100551,10.62893,1577.5,1577.3,16.96335331]
[1744847100851,6.1247,1577.5,1577.3,18.23143331]
[1744847101046,1.7637,1577.5,1577.4,16.3182647]
[1744847101247,1.7637,1577.5,1577.4,18.0786647]
[1744847101445,1.7637,1577.5,1577.4,18.9547647]
[1744847101757,0.00951353,1577.6,1577.5,1.26793]
[1744847101957,1.27735353,1577.6,1577.5,4.08813972]
[1744847102253,0.00951353,1577.6,1577.5,3.59566972]
[1744847102444,0.00951353,1577.6,1577.5,5.35606972]
[1744847102844,0.00951353,1577.6,1577.5,4.08813972]
[1744847103041,0.00951353,1577.6,1577.5,2.32773972]
[1744847103256,2.95545353,1577.6,1577.5,2.32773972]
[1744847103554,3.78075353,1577.6,1577.5,2.32773972]
[1744847105156,1.26801,1577.4,1577.3,0.00951353]
[1744847105350,4.47581,1577.4,1577.3,0.00951353]
[1744847105554,9.47581,1577.4,1577.3,0.00951353]
[1744847105755,12.05091,1577.4,1577.3,0.00951353]
[1744847106054,18.04091,1577.4,1577.3,0.00951353]
[1744847106455,18.04091,1577.4,1577.3,3.53e-06]
[1744847111055,13.04091,1577.4,1577.3,3.53e-06]
[1744847111356,6.19451,1577.4,1577.3,2.32774325]
[1744847113570,1.26825,1577.1,1576.8,1.26842]
[1744847113862,1.26833,1577.0,1576.9,2.32773972]
[1744847114070,2.93993,1577.0,1576.9,2.32773972]
[1744847115762,1.6716,1577.0,1576.9,3.59614972]
[1744847115961,1.26828,1577.1,1576.9,5.24534972]
[1744847116161,2.93358,1577.1,1577.0,4.06643972]
[1744847116362,11.62112,1577.3,1577.1,1.26822]
[1744847116562,11.62112,1577.3,1577.1,5.33465972]
[1744847116866,13.28642,1577.3,1577.2,3.13913972]
[1744847117163,13.28642,1577.3,1577.2,4.87783972]
[1744847117567,8.92342,1577.3,1577.2,4.87783972]
[1744847117766,8.92339,1577.3,1577.2,4.87783972]
[1744847118263,8.92339,1577.3,1577.2,6.14600972]
[1744847118469,8.92339,1577.3,1577.2,4.87783972]
[1744847120568,8.92339,1577.3,1577.2,3.13913972]
[1744847121269,8.92339,1577.3,1577.2,2.32773972]
[1744847121770,7.6553,1577.3,1576.9,0.8282]
[1744847121970,1.26825,1577.1,1577.0,2.32773972]
[1744847122474,3.85735,1577.1,1577.0,2.32773972]
[1744847123070,7.06515,1577.1,1577.0,2.32773972]
[1744847123268,3.85735,1577.1,1577.0,2.32773972]
[1744847127863,9.84735,1577.1,1577.0,2.32773972]
[1744847131073,5.99,1577.1,1577.0,8.59606972]
[1744847131274,5.99,1577.5,1577.4,1.26801]
[1744847131580,0.00951353,1577.6,1577.5,1.26793]
[1744847131778,0.00951353,1577.6,1577.5,6.18216972]
[1744847132172,1.27735353,1577.6,1577.5,4.91423972]
[1744847132374,3.03955353,1577.6,1577.5,4.91423972]
[1744847133379,0.00951353,1577.6,1577.5,6.18216972]
[1744847136282,1.27735353,1577.6,1577.5,6.18216972]
[1744847136583,1.27735353,1577.6,1577.5,4.91423972]
[1744847136984,2.98075353,1577.6,1577.5,4.91423972]
[1744847137584,2.98075353,1577.6,1577.5,3.15283972]
[1744847138079,2.98075353,1577.6,1577.5,2.32773972]
[1744847138288,1.26801,1577.4,1577.3,0.859]
[1744847138788,1.26801,1577.4,1577.3,3.18673972]
[1744847138978,3.01941,1577.4,1577.3,3.18673972]
[1744847141088,3.01941,1577.4,1577.3,2.32773972]
[1744847144192,1.26825,1577.1,1577.0,2.4712]
[1744847144491,1.26825,1577.1,1577.0,3.18793972]
[1744847145887,2.92135,1577.1,1577.0,3.18793972]
[1744847146889,2.92135,1577.1,1577.0,4.45626972]
[1744847147187,5.99,1577.2,1577.1,1.26825]
[1744847147390,5.99,1577.2,1577.1,5.26708972]
[1744847148589,5.99,1577.2,1577.1,10.26708972]
[1744847148980,5.99,1577.2,1577.1,5.26708972]
[1744847149181,0.00951353,1577.6,1577.5,1.26793]
[1744847149590,0.00951353,1577.6,1577.5,3.59566972]
[1744847149791,0.00951353,1577.6,1577.5,6.80346972]
[1744847149985,0.00951353,1577.6,1577.5,3.59566972]
[1744847150184,0.00951353,1577.6,1577.5,9.36136972]
[1744847150893,0.00951353,1577.6,1577.5,8.09343972]
[1744847150894,1.27735353,1577.6,1577.5,8.09343972]
[1744847151095,2.99115353,1577.6,1577.5,8.09343972]
[1744847151387,2.99115353,1577.6,1577.5,9.36136972]
[1744847152694,1.72331353,1577.6,1577.5,9.36136972]
[1744847153089,1.72331353,1577.6,1577.5,6.15356972]
[1744847154490,0.00951353,1577.6,1577.5,6.15356972]
[1744847154994,0.00951353,1577.6,1577.5,5.32016972]
[1744847156496,0.00951353,1577.6,1577.5,8.52796972]
[1744847157590,1.76291353,1577.6,1577.5,5.32016972]
[1744847157894,1.76291353,1577.6,1577.5,8.52796972]
[1744847161301,1.76291353,1577.6,1577.5,5.32016972]
[1744847161992,1.76291353,1577.6,1577.5,8.52796972]
[1744847163897,3.03075353,1577.6,1577.5,6.80346972]
[1744847164090,3.03075353,1577.6,1577.5,5.53553972]
[1744847164403,3.03075353,1577.6,1577.5,6.80346972]
[1744847164705,1.76291353,1577.6,1577.5,6.80346972]
[1744847165205,2.59001353,1577.6,1577.5,6.80346972]
[1744847166208,3.53e-06,1577.6,1577.5,16.16146972]
[1744847166499,7.7016,1578.5,1577.6,3.16962]
[1744847166802,3.3763,1578.5,1578.0,6.3766]
[1744847166998,1.65543972,1578.4,1578.3,1.26724]
[1744847167401,2.92270972,1578.4,1578.3,2.32773972]
[1744847167598,7.92270972,1578.4,1578.3,2.32773972]
[1744847167998,2.92270972,1578.4,1578.3,2.32773972]
[1744847168806,1.26728,1578.3,1578.2,0.00951353]
[1744847169298,1.26728,1578.3,1578.2,2.33725325]
[1744847169606,1.26726,1578.4,1578.2,3.60461325]
[1744847169799,1.26726,1578.4,1578.3,2.32773972]
[1744847170198,2.91116,1578.4,1578.3,2.32773972]
[1744847172006,8.90116,1578.4,1578.3,2.32773972]
[1744847173507,7.6339,1578.4,1578.3,3.59501972]
[1744847174711,8.9011,1578.4,1578.3,3.59501972]
[1744847174920,7.6339,1578.4,1578.3,3.59501972]
[1744847175412,8.9011,1578.4,1578.3,3.59501972]
[1744847176008,7.6339,1578.4,1578.3,3.59501972]
[1744847176710,8.9011,1578.4,1578.3,3.59501972]
[1744847176911,7.6339,1578.4,1578.3,3.59501972]
[1744847177712,1.6439,1578.4,1578.3,3.59501972]
[1744847180513,2.9111,1578.4,1578.3,3.59501972]
[1744847182011,1.6439,1578.4,1578.3,3.59501972]
[1744847183515,1.6439,1578.4,1578.3,44.39501972]
[1744847185221,2.9111,1578.4,1578.3,44.39501972]
[1744847185409,1.6439,1578.4,1578.3,44.39501972]
[1744847190114,2.9111,1578.4,1578.3,44.39501972]
[1744847191218,2.9111,1578.4,1578.3,2.32773972]
[1744847191523,1.26728,1578.3,1578.2,0.00951353]
[1744847191716,7.22938,1578.3,1578.2,0.00951353]
[1744847193724,10.43718,1578.3,1578.2,0.00951353]
[1744847193918,21.42718,1578.3,1578.2,0.00951353]
[1744847194120,21.42718,1578.3,1577.6,3.2078]
[1744847194121,1.26773,1577.8,1577.6,3.2078]
[1744847194425,1.26773,1577.8,1577.7,2.32773972]
[1744847194619,10.46553,1577.8,1577.7,2.32773972]
[1744847194920,1.26798,1577.5,1577.3,1.26806]
[1744847195116,1.26802,1577.4,1577.3,2.32773972]
[1744847195727,1.7725,1577.4,1577.3,3.59582972]
[1744847196116,1.7725,1577.4,1577.3,5.24182972]
[1744847196920,1.7725,1577.4,1577.3,3.59582972]
[1744847198226,3.04051,1577.4,1577.3,2.32773972]
[1744847198425,1.7725,1577.4,1577.3,3.59582972]
[1744847199722,1.7725,1577.4,1577.3,5.24332972]
[1744847201131,1.7725,1577.4,1577.3,8.45112972]
[1744847201919,1.7725,1577.4,1577.3,5.24332972]
[1744847205832,5.99951353,1577.6,1577.5,1.26793]
[1744847206028,11.93941353,1577.6,1577.5,1.26793]
[1744847206221,11.93941353,1577.6,1577.5,3.59566972]
[1744847206831,11.93941353,1577.6,1577.5,5.20006972]
[1744847208224,7.63141353,1577.6,1577.5,5.20006972]
[1744847208430,5.99951353,1577.6,1577.5,5.20006972]
[1744847208727,0.00951353,1577.6,1577.5,8.40786972]
[1744847212623,8.14376,1577.9,1577.8,1.26768]
[1744847212828,9.81436,1577.9,1577.8,1.26768]
[1744847213028,9.81436,1577.9,1577.8,3.59541972]
[1744847213933,9.81436,1577.9,1577.8,2.32773972]
[1744847214428,9.81436,1577.9,1577.8,3.59541972]
[1744847214835,9.81436,1577.9,1577.8,2.32773972]
[1744847216134,9.81436,1577.9,1577.8,3.59541972]
[1744847216335,9.81436,1577.9,1577.8,2.32773972]
[1744847216735,9.81436,1577.9,1577.8,3.59541972]
[1744847217832,9.81436,1577.9,1577.8,2.32773972]
[1744847218937,9.81436,1577.9,1577.8,3.59541972]
[1744847219737,9.81436,1577.9,1577.8,2.32773972]
[1744847220331,9.81436,1577.9,1577.8,3.59541972]
[1744847221736,3.82436,1577.9,1577.8,3.59541972]
[1744847222239,3.82436,1577.9,1577.8,2.32773972]
[1744847225741,3.82436,1577.9,1577.8,3.59541972]
[1744847226338,3.82436,1577.9,1577.8,2.32773972]
[1744847228139,3.82436,1577.9,1577.8,3.59541972]
[1744847231043,3.82436,1577.9,1577.8,2.32773972]
[1744847242859,13.93365,1577.9,1577.5,1.2679]
[1744847243059,1.26787,1577.6,1577.4,1.26794]